bitfinex/quotes_ETHUSD_20240926
["timestamp","ask_amount","ask_price","bid_price","bid_amount"]
[1727369737293,3.7577,2661.2,2660.9,0.8305]
[1727369737695,3.75796,2661.1,2660.9,0.8305]
[1727369738783,3.7577,2661.2,2660.9,0.8305]
[1727369739374,7.51549,2661.2,2660.9,0.8305]
[1727369740172,3.7577,2661.2,2660.9,0.8305]
[1727369740477,3.75714,2661.6,2661.1,3.75777]
[1727369740777,3.7573,2661.5,2661.2,0.8305]
[1727369740982,3.75756,2661.3,2661.2,0.8305]
[1727369741137,3.75756,2661.3,2660.8,3.75816]
[1727369741138,3.75756,2661.3,2660.9,0.8305]
[1727369743387,3.75742,2661.4,2661.0,3.75797]
[1727369743687,3.75733,2661.5,2661.1,3.75784]
[1727369743892,3.75733,2661.5,2661.0,3.75797]
[1727369744077,3.75743,2661.4,2661.0,3.75797]
[1727369744277,3.75743,2661.4,2660.9,0.8305]
[1727369744462,3.75756,2661.3,2660.9,0.8305]
[1727369745578,3.75771,2661.2,2660.9,0.8305]
[1727369746900,7.51498,2661.4,2660.9,4.58862]
[1727369747196,3.75758,2661.3,2660.9,0.8305]
[1727369747752,3.75743,2661.4,2660.9,4.58853]
[1727369748900,7.51444,2661.6,2661.1,3.75781]
[1727369749198,7.51444,2661.6,2661.0,3.75787]
[1727369749199,3.75736,2661.5,2661.0,3.75797]
[1727369749369,3.75736,2661.5,2661.0,7.51588]
[1727369749696,3.75736,2661.5,2661.1,3.75784]
[1727369750596,3.75719,2661.6,2661.2,3.75768]
[1727369750764,3.75696,2661.8,2661.3,0.8069]
[1727369750975,7.51391,2661.8,2661.3,4.56438]
[1727369751557,3.75695,2661.8,2661.4,3.75741]
[1727369751996,7.5139,2661.8,2661.3,4.56443]
[1727369752199,3.75695,2661.8,2661.3,0.8069]
[1727369752363,3.75695,2661.8,2661.5,0.8069]
[1727369753374,7.19517408,2662.0,2661.5,0.8069]
[1727369753577,3.75687,2661.8,2661.5,0.8069]
[1727369754134,7.51381,2661.8,2661.5,0.8069]
[1727369754997,3.75687,2661.8,2661.5,0.8069]
[1727369755192,3.757,2661.7,2661.5,0.8069]
[1727369756238,3.757,2661.7,2661.1,4.56464]
[1727369756541,3.43848408,2661.6,2661.1,4.56464]
[1727369757036,3.75734,2661.5,2661.1,4.56464]
[1727369757345,3.75748,2661.4,2661.1,0.8069]
[1727369757499,3.7575,2661.4,2661.1,0.8069]
[1727369757868,3.75758,2661.3,2660.9,11.90502]
[1727369758322,3.75758,2661.3,2660.9,8.1469]
[1727369758639,3.75776,2661.2,2660.9,8.1469]
[1727369758944,3.75776,2661.2,2660.9,0.8069]
[1727369759440,3.75767,2661.3,2660.7,4.54219]
[1727369759641,4.20658408,2661.4,2660.7,0.7839]
[1727369759642,3.75792,2661.1,2660.7,0.7839]
[1727369761007,3.75792,2661.1,2660.7,4.54229]
[1727369761212,0.42065841,2661.3,2659.9,8.1620733]
[1727369761213,7.19669408,2660.9,2659.9,8.1620733]
[1727369761472,4.52616,2661.0,2660.5,3.75868]
[1727369761664,3.75786,2661.1,2660.5,3.75859]
[1727369761872,3.0,2661.0,2660.4,0.7839]
[1727369762170,3.75836,2660.8,2660.4,0.7839]
[1727369762464,3.75819,2660.9,2660.4,4.54264]
[1727369763323,6.75799,2661.0,2660.5,3.75866]
[1727369763730,6.758,2661.0,2660.4,0.7839]
[1727369763931,6.758,2661.0,2660.5,3.75867]
[1727369764373,6.758,2661.0,2660.5,3.75859]
[1727369764668,3.0,2661.0,2660.8,0.7839]
[1727369764877,3.75721,2661.6,2661.0,3.75796]
[1727369765031,3.43848408,2661.9,2661.2,3.75769]
[1727369765032,3.75706,2661.7,2661.2,3.75769]
[1727369765225,3.75692,2661.8,2661.1,0.85904747]
[1727369765455,3.75715,2661.6,2661.1,0.85904747]
[1727369765657,3.43848408,2661.9,2661.1,0.7839]
[1727369765973,3.75708,2661.7,2661.2,3.75763]
[1727369766172,3.75708,2661.7,2661.1,4.54167]
[1727369766470,7.51417,2661.7,2661.1,4.54167]
[1727369767137,3.75715,2661.6,2661.1,4.54167]
[1727369767342,3.75715,2661.6,2661.1,0.7839]
[1727369767559,3.75715,2661.6,2661.1,4.54167]
[1727369768362,3.75713,2661.6,2661.1,4.54167]
[1727369768568,3.75708,2661.7,2661.1,0.7839]
[1727369768935,3.75708,2661.7,2661.2,3.75769]
[1727369769376,3.75729,2661.5,2661.1,4.54172]
[1727369769602,3.75729,2661.5,2661.1,0.7839]
[1727369769812,7.5147,2661.5,2661.1,0.7839]
[1727369770110,3.75744,2661.4,2661.1,0.7839]
[1727369770666,3.75756,2661.3,2661.1,0.7839]
[1727369770869,3.7577,2661.2,2661.1,0.7839]
[1727369771075,7.51525,2661.3,2661.1,0.7839]
[1727369771398,3.75784,2661.1,2660.8,0.7839]
[1727369771804,3.75756,2661.3,2660.8,0.7839]
[1727369771957,3.75776,2661.2,2660.8,0.7839]
[1727369772158,3.75756,2661.3,2660.8,0.7839]
[1727369772159,3.43848408,2661.3,2660.8,0.7839]
[1727369772365,3.75809,2661.0,2660.8,0.7839]
[1727369773368,3.75812,2660.9,2660.8,0.7839]
[1727369773563,3.75812,2660.9,2660.5,4.56097]
[1727369773769,3.75812,2660.9,2660.5,0.8023]
[1727369773970,3.75812,2660.9,2660.5,4.56098]
[1727369774190,3.75812,2660.9,2660.5,0.8023]
[1727369774714,3.75841,2660.7,2660.5,0.8023]
[1727369774868,3.75848,2660.7,2660.2,11.90141]
[1727369775209,3.75848,2660.7,2660.2,4.56141]
[1727369777010,3.75848,2660.7,2660.2,8.32043]
[1727369777169,3.7583,2660.8,2660.3,3.75895]
[1727369777371,7.51666,2660.8,2660.3,3.75895]
[1727369777687,3.75852,2660.7,2660.2,4.56127]
[1727369778004,4.588466,2660.8,2660.2,4.56127]
[1727369778208,3.7583,2660.8,2660.3,3.75894]
[1727369778710,3.75842,2660.7,2660.3,3.75894]
[1727369779287,4.54309,2661.0,2660.3,3.75894]
[1727369779494,3.75829,2660.8,2660.3,3.75894]
[1727369779691,3.75829,2660.8,2660.3,3.75888]
[1727369779888,3.75829,2660.8,2660.4,4.56112]
[1727369780092,3.75809,2661.0,2660.5,3.75861]
[1727369780288,3.75809,2661.0,2660.5,7.51719]
[1727369780519,3.75809,2661.0,2660.5,3.83374512]
[1727369780680,3.75809,2661.0,2660.5,3.75858]
[1727369781080,3.75809,2661.0,2660.5,7.51719]
[1727369781490,3.75809,2661.0,2660.5,3.75858]
[1727369781698,3.75819,2660.9,2660.5,3.75858]
[1727369781999,3.75857,2660.6,2660.4,0.8023]
[1727369782380,3.75886,2660.4,2660.1,0.8023]
[1727369782581,3.75869,2660.5,2660.1,0.8023]
[1727369783429,3.75869,2660.5,2660.1,4.56148]
[1727369784089,3.75869,2660.5,2660.1,0.8023]
[1727369784333,0.375869,2660.4,2660.1,0.8023]
[1727369784543,3.75881,2660.5,2660.1,4.56154]
[1727369784723,3.75863,2660.6,2660.1,0.8023]
[1727369784925,3.75871,2660.5,2660.1,0.8023]
[1727369785124,3.75898,2660.3,2659.9,0.0381733]
[1727369785372,4.510768,2660.3,2659.9,0.0381733]
[1727369785581,3.75939,2660.0,2659.9,0.0381733]
[1727369785876,3.85338127,2660.0,2659.9,0.0381733]
[1727369787344,3.75939,2660.0,2659.9,0.0381733]
[1727369788571,3.85338129,2660.0,2659.9,0.0381733]
[1727369788776,3.75939,2660.0,2659.9,0.0381733]
[1727369791258,4.93360241,2660.0,2659.9,0.0381733]
[1727369791733,5.02759379,2660.0,2659.9,0.0381733]
[1727369791858,5.75850241,2660.0,2659.9,0.0381733]
[1727369793341,4.93360241,2660.0,2659.9,0.0381733]
[1727369793546,3.75939,2660.0,2659.9,0.0381733]
[1727369795080,7.19773408,2660.1,2659.9,0.0381733]
[1727369795081,3.75931,2660.1,2659.9,0.0381733]
[1727369795594,3.75912,2660.2,2659.9,0.0381733]
[1727369795952,3.75939,2660.0,2659.9,0.0381733]
[1727369796353,3.75925,2660.1,2659.9,0.0381733]
[1727369797057,7.51837,2660.2,2659.9,0.0381733]
[1727369797585,3.75912,2660.2,2659.9,0.0381733]
[1727369797755,3.75903,2660.3,2659.9,0.0381733]
[1727369797950,3.75883,2660.4,2660.0,0.7669]
[1727369799170,7.51777,2660.4,2660.0,0.7669]
[1727369799593,3.75899,2660.3,2660.0,0.7669]
[1727369800502,3.75883,2660.4,2660.0,0.7669]
[1727369800503,3.0,2660.4,2660.0,0.7669]
[1727369800705,3.75855,2660.6,2660.0,0.7669]
[1727369801022,3.75879,2660.5,2660.0,4.52623]
[1727369802284,3.75884,2660.4,2660.0,4.52623]
[1727369802713,3.75884,2660.4,2660.0,0.7669]
[1727369803039,3.75898,2660.3,2660.0,0.7669]
[1727369803932,3.75919,2660.2,2660.0,0.7669]
[1727369804226,3.75925,2660.1,2659.9,0.0381733]
[1727369804632,3.75912,2660.2,2659.9,0.0381733]
[1727369805132,3.75897,2660.3,2659.9,0.0381733]
[1727369805494,3.75846,2660.7,2660.1,3.75919]
[1727369805723,3.75846,2660.7,2660.3,0.8189]
[1727369805724,3.75862,2660.6,2660.3,0.8189]
[1727369805926,3.75869,2660.5,2660.3,0.8189]
[1727369806737,3.75855,2660.6,2660.3,0.8189]
[1727369807255,3.7587,2660.5,2660.3,0.8189]
[1727369808456,3.75856,2660.6,2660.3,0.8189]
[1727369809357,3.75871,2660.5,2660.3,0.8189]
[1727369809915,3.75855,2660.6,2660.3,0.8189]
[1727369810818,3.75893,2660.4,2660.0,0.8189]
[1727369811221,3.75906,2660.3,2660.0,0.8189]
[1727369812458,3.75914,2660.2,2660.0,0.8189]
[1727369812628,3.75939,2660.0,2659.9,0.0381733]
[1727369812827,5.23697741,2660.0,2659.9,0.0381733]
[1727369813029,7.19774408,2660.1,2659.9,0.0381733]
[1727369814017,3.75939,2660.0,2659.9,0.0381733]
[1727369815610,3.85338013,2660.0,2659.9,0.0381733]
[1727369815907,3.85338738,2660.0,2659.9,0.0381733]
[1727369816110,4.95850053,2660.0,2659.9,0.0381733]
[1727369816316,4.86450315,2660.0,2659.9,0.0381733]
[1727369816611,8.62230315,2660.0,2659.9,0.0381733]
[1727369817022,9.17230315,2660.0,2659.9,0.0381733]
[1727369817405,9.56321874,2660.0,2659.9,0.0381733]
[1727369818503,13.00170282,2660.0,2659.9,0.0381733]
[1727369818704,9.56321874,2660.0,2659.9,0.0381733]
[1727369820634,4.21918408,2660.3,2659.9,0.0381733]
[1727369820840,3.75929,2660.1,2659.9,0.0381733]
[1727369821007,7.19777408,2660.1,2659.9,0.0381733]
[1727369821349,3.43848408,2660.1,2659.9,0.0381733]
[1727369821645,0.7807,2660.3,2659.9,3.7977033]
[1727369821646,7.19750408,2660.3,2659.9,3.7977033]
[1727369821798,3.43848408,2660.3,2659.9,3.7977033]
[1727369822110,3.0,2660.2,2659.9,0.0381733]
[1727369822314,0.7807,2660.5,2659.9,0.0381733]
[1727369822315,7.19725408,2660.5,2660.0,3.75928]
[1727369822522,3.75835,2660.8,2660.2,0.7828]
[1727369822699,0.39065879,2661.1,2660.6,3.75852]
[1727369822899,0.7807,2661.4,2660.8,0.7828]
[1727369822900,3.75771,2661.2,2660.8,0.7828]
[1727369823101,3.75801,2661.0,2660.8,0.7828]
[1727369824347,3.43848408,2661.1,2660.8,0.7828]
[1727369824534,3.75799,2661.0,2660.8,0.7828]
[1727369825442,7.19660408,2660.9,2660.5,0.7828]
[1727369825657,3.43848408,2660.9,2660.5,0.7828]
[1727369826936,3.75835,2660.8,2660.5,0.7828]
[1727369827137,3.43848408,2660.6,2660.1,0.7828]
[1727369827514,3.43848408,2660.6,2660.1,4.54205]
[1727369827515,7.19710408,2660.6,2660.1,4.54205]
[1727369827712,7.19710408,2660.6,2660.1,0.7828]
[1727369827713,3.75886,2660.4,2660.1,0.7828]
[1727369828038,7.19710408,2660.6,2660.1,0.7828]
[1727369828239,3.75883,2660.4,2660.1,0.7828]
[1727369828914,3.75898,2660.3,2659.9,0.0381733]
[1727369829112,7.51752,2660.5,2659.9,3.7976733]
[1727369829415,3.75918,2660.2,2659.9,0.0381733]
[1727369829574,7.19781408,2660.1,2659.9,0.0381733]
[1727369829925,3.75933,2660.1,2659.9,0.0381733]
[1727369830564,3.75939,2660.0,2659.9,0.0381733]
[1727369831433,3.85338323,2660.0,2659.9,0.0381733]
[1727369831628,4.94257973,2660.0,2659.9,0.0381733]
[1727369831823,5.03657296,2660.0,2659.9,0.0381733]
[1727369832055,4.94257973,2660.0,2659.9,0.0381733]
[1727369832569,5.03657295,2660.0,2659.9,0.0381733]
[1727369832763,4.94257973,2660.0,2659.9,0.0381733]
[1727369833296,7.94257973,2660.0,2659.9,0.0381733]
[1727369835997,6.75939,2660.0,2659.9,0.0381733]
[1727369837953,7.19781408,2660.1,2659.9,0.0381733]
[1727369837954,7.5187,2660.1,2659.9,0.0381733]
[1727369838272,3.75939,2660.0,2659.9,0.0381733]
[1727369839423,3.0,2660.1,2659.9,0.0381733]
[1727369839608,3.43848408,2660.4,2659.9,0.0381733]
[1727369839609,3.0,2660.3,2659.9,0.0381733]
[1727369839770,3.43848408,2660.8,2659.9,0.0381733]
[1727369839974,3.7584,2660.8,2660.3,3.75897]
[1727369840286,3.7584,2660.8,2660.4,0.8118]
[1727369840602,3.75858,2660.6,2660.4,0.8118]
[1727369841317,3.75854,2660.7,2660.4,0.8118]
[1727369841535,3.75855,2660.6,2660.4,0.8118]
[1727369842526,3.75823,2660.9,2660.4,0.8118]
[1727369842825,3.0,2660.8,2660.4,0.8118]
[1727369843000,3.75841,2660.7,2660.4,0.8118]
[1727369843419,3.43848408,2660.8,2660.4,0.8118]
[1727369843591,3.75841,2660.7,2660.4,0.8118]
[1727369844522,3.75885,2660.4,2660.2,0.8118]
[1727369845109,3.75912,2660.2,2659.9,0.8499733]
[1727369845419,3.75901,2660.3,2659.9,0.8499733]
[1727369847721,3.75919,2660.2,2659.9,0.8499733]
[1727369848015,3.75901,2660.3,2659.9,0.8499733]
[1727369848818,7.5181,2660.3,2659.9,0.8499733]
[1727369849118,3.75918,2660.2,2659.9,0.8499733]
[1727369850782,3.75933,2660.1,2659.9,0.8499733]
[1727369851818,3.75911,2660.2,2659.9,0.8499733]
[1727369852905,7.19787408,2660.0,2659.9,0.0381733]
[1727369853779,3.75939,2660.0,2659.9,0.0381733]
[1727369853993,7.19787408,2660.0,2659.9,0.0381733]
[1727369854583,8.01087408,2660.0,2659.9,0.0381733]
[1727369854776,12.27120009,2660.0,2659.9,0.0381733]
[1727369855932,12.82120009,2660.0,2659.9,0.0381733]
[1727369857599,13.2110394,2660.0,2659.9,0.0381733]
[1727369859956,16.64952348,2660.0,2659.9,0.0381733]
[1727369860120,16.64952348,2660.0,2659.1,0.0381733]
[1727369860121,11.01200408,2659.2,2659.1,0.0381733]
[1727369861600,7.57352,2659.2,2659.1,0.0381733]
[1727369861804,6.76052,2659.2,2659.1,0.0381733]
[1727369868572,10.19900408,2659.2,2659.1,0.0381733]
[1727369869678,7.19900408,2659.2,2659.1,0.0381733]
[1727369869845,3.76052,2659.2,2659.1,0.0381733]
[1727369871686,3.76015,2659.5,2659.2,0.7549]
[1727369871839,3.76027,2659.4,2659.2,0.7549]
[1727369872040,3.76038,2659.3,2659.2,0.7549]
[1727369872734,3.76024,2659.4,2659.2,0.7549]
[1727369872930,3.76015,2659.5,2659.2,0.7549]
[1727369873372,3.76024,2659.4,2659.2,0.7549]
[1727369874437,3.76038,2659.3,2659.2,0.7549]
[1727369878380,3.76034,2659.4,2659.2,0.7549]
[1727369878587,3.76038,2659.3,2659.2,0.7549]
[1727369880094,3.76052,2659.2,2659.1,0.0381733]
[1727369880261,4.94473967,2659.2,2659.1,0.0381733]
[1727369880468,3.76052,2659.2,2659.1,0.0381733]
[1727369882606,3.76026,2659.4,2659.1,0.0381733]
[1727369882917,3.76021,2659.5,2659.1,0.0381733]
[1727369883085,3.76021,2659.5,2659.2,0.7911]
[1727369883300,6.76002,2659.6,2659.2,4.55161]
[1727369883816,3.75996,2659.6,2659.2,4.55161]
[1727369883978,7.52002,2659.6,2659.2,0.7911]
[1727369884180,3.76011,2659.5,2659.2,0.7911]
[1727369885524,3.75997,2659.6,2659.2,0.7911]
[1727369885844,3.7601,2659.5,2659.2,0.7911]
[1727369886131,7.52034,2659.5,2659.2,0.7911]
[1727369886281,3.76025,2659.4,2659.2,0.7911]
[1727369886486,7.22728408,2659.8,2659.1,0.0381733]
[1727369886487,0.55,2659.5,2659.1,0.0381733]
[1727369886686,3.76039,2659.3,2659.1,0.0381733]
[1727369887081,3.76052,2659.2,2659.1,0.0381733]
[1727369887388,4.94474121,2659.2,2659.1,0.0381733]
[1727369887586,3.7604,2659.3,2659.1,0.0381733]
[1727369889297,3.0,2659.4,2659.2,0.7911]
[1727369889689,6.76032,2659.4,2659.2,0.7911]
[1727369889890,6.76026,2659.4,2659.2,0.7911]
[1727369891438,3.76052,2659.2,2659.1,0.0381733]
[1727369892122,8.19333529,2659.2,2659.1,0.0381733]
[1727369892438,8.09932,2659.2,2659.1,0.0381733]
[1727369893832,6.76052,2659.2,2659.1,0.0381733]
[1727369894052,3.76027,2659.4,2659.1,0.0381733]
[1727369895944,7.52062,2659.4,2659.1,0.0381733]
[1727369896439,3.76027,2659.4,2659.1,0.0381733]
[1727369896907,7.52063,2659.4,2659.1,0.0381733]
[1727369897241,3.76027,2659.4,2659.1,0.0381733]
[1727369897452,3.76041,2659.3,2659.1,0.0381733]
[1727369897961,3.0,2659.7,2659.2,0.8075]
[1727369898103,3.75968,2659.8,2659.4,0.8075]
[1727369898302,3.75979,2659.8,2659.4,0.8075]
[1727369898543,3.75985,2659.7,2659.4,0.8075]
[1727369898860,3.75985,2659.7,2659.1,0.0381733]
[1727369898861,4.511814,2659.7,2659.1,0.8456733]
[1727369899038,3.76004,2659.6,2659.1,0.8456733]
[1727369901626,3.76004,2659.6,2659.2,3.76052]
[1727369902152,3.75986,2659.7,2659.2,3.76045]
[1727369902439,3.75986,2659.7,2659.3,0.8075]
[1727369902840,3.75989,2659.7,2659.3,0.8075]
[1727369903231,3.75969,2659.8,2659.3,0.8075]
[1727369903414,3.75969,2659.8,2659.4,3.76021]
[1727369904144,4.30955,2659.9,2659.4,3.76016]
[1727369904446,4.30955,2659.9,2659.4,3.76015]
[1727369904683,6.75951,2660.0,2659.4,3.76015]
[1727369904684,6.75951,2660.0,2659.5,3.76001]
[1727369905031,6.75951,2660.0,2659.6,4.56743]
[1727369905507,3.0,2660.1,2659.7,3.75982]
[1727369906243,6.75936,2660.1,2659.6,4.56744]
[1727369907644,3.75917,2660.2,2659.7,4.56725]
[1727369908016,3.75917,2660.2,2659.7,8.32699]
[1727369908456,3.75917,2660.2,2659.8,3.75965]
[1727369909288,3.75917,2660.2,2659.7,0.8075]
[1727369909486,3.75917,2660.2,2659.7,4.5673]
[1727369909845,3.75917,2660.2,2659.7,0.8075]
[1727369909846,3.75927,2660.1,2659.7,0.8075]
[1727369910656,4.58457,2660.2,2659.7,0.8075]
[1727369910849,3.75941,2660.0,2659.7,0.8075]
[1727369911381,3.75928,2660.1,2659.7,4.56726]
[1727369914183,3.75928,2660.1,2659.7,0.8075]
[1727369914388,7.51923,2659.9,2659.5,0.7878]
[1727369914576,3.75971,2659.8,2659.5,0.7878]
[1727369915685,7.51948,2659.8,2659.5,0.7878]
[1727369916045,3.75971,2659.8,2659.5,0.7878]
[1727369916941,3.76011,2659.5,2659.1,0.8259733]
[1727369917143,0.91939979,2659.7,2659.1,0.8259733]
[1727369917144,7.52016,2659.6,2659.1,0.8259733]
[1727369917449,3.76011,2659.5,2659.1,0.8259733]
[1727369917874,3.76011,2659.5,2659.1,4.5866333]
[1727369918149,3.75998,2659.6,2659.1,4.5866333]
[1727369919272,4.93834541,2659.6,2659.1,4.5866333]
[1727369919733,8.69840541,2659.6,2659.1,4.5866333]
[1727369919999,4.93834541,2659.6,2659.1,4.5866333]
[1727369920154,3.7601,2659.5,2659.1,4.5866333]
[1727369921282,0.8254,2659.7,2659.1,0.8259733]
[1727369921283,3.0,2659.7,2659.1,0.8259733]
[1727369921452,3.0,2659.7,2659.4,0.7878]
[1727369922054,6.75983,2659.7,2659.4,0.7878]
[1727369924792,3.76008,2659.6,2659.4,0.7878]
[1727369925684,3.7601,2659.5,2659.1,0.8503733]
[1727369925883,3.76035,2659.4,2659.1,0.8503733]
[1727369930377,3.76011,2659.5,2659.1,4.6110233]
[1727369930809,3.76025,2659.4,2659.1,0.8503733]
[1727369932004,3.76012,2659.5,2659.1,0.8503733]
[1727369932170,3.76024,2659.4,2659.1,0.8503733]
[1727369933005,7.52056,2659.4,2659.1,0.8503733]
[1727369933303,4.512296,2659.4,2659.1,0.0381733]
[1727369933512,3.76044,2659.3,2659.1,0.0381733]
[1727369934685,3.76052,2659.2,2659.1,0.0381733]
[1727369934917,3.76017,2659.5,2659.2,0.8122]
[1727369935899,3.76005,2659.6,2659.2,0.8122]
[1727369936103,7.52012,2659.6,2659.2,0.8122]
[1727369936538,3.76005,2659.6,2659.2,0.8122]
[1727369936839,7.5201,2659.6,2659.2,0.8122]
[1727369937058,3.76005,2659.6,2659.2,0.8122]
[1727369937259,3.76013,2659.5,2659.2,0.8122]
[1727369938960,3.76038,2659.3,2659.2,0.8122]
[1727369939104,3.76038,2659.3,2659.1,0.0381733]
[1727369939310,7.5209,2659.3,2659.1,0.0381733]
[1727369939748,3.76038,2659.3,2659.1,0.0381733]
[1727369939995,3.76052,2659.2,2659.1,0.0381733]
[1727369940150,3.76038,2659.3,2659.1,0.0381733]
[1727369941674,3.76031,2659.4,2659.1,0.0381733]
[1727369943680,3.76039,2659.3,2659.1,0.0381733]
[1727369944670,3.76803123,2659.4,2659.1,0.0381733]
[1727369946382,3.76039,2659.3,2659.1,0.0381733]
[1727369946705,3.76052,2659.2,2659.1,0.0381733]
[1727369946901,3.76803123,2659.4,2659.1,0.0381733]
[1727369949662,7.52838123,2659.4,2659.1,0.0381733]
[1727369949912,0.82869292,2659.3,2659.1,0.0381733]
[1727369950070,3.76803123,2659.4,2659.1,0.0381733]
[1727369951393,7.52838123,2659.4,2659.1,0.0381733]
[1727369951711,3.76803123,2659.4,2659.1,0.0381733]
[1727369954845,7.52838123,2659.4,2659.1,0.0381733]
[1727369955131,3.76803123,2659.4,2659.1,0.0381733]
[1727369955341,7.52835123,2659.4,2659.1,0.0381733]
[1727369955520,4.53274057,2659.4,2659.1,0.0381733]
[1727369956034,8.29311057,2659.4,2659.1,0.0381733]
[1727369956331,3.76052,2659.2,2659.1,0.0381733]
[1727369956891,3.76038,2659.3,2659.1,0.8454733]
[1727369957502,7.52087,2659.3,2659.1,0.8454733]
[1727369958232,7.52087,2659.3,2659.1,0.0381733]
[1727369958418,1.14689279,2659.3,2659.1,0.0381733]
[1727369958636,3.76046,2659.3,2659.1,0.0381733]
[1727369959633,6.76804123,2659.4,2659.1,0.0381733]
[1727369959950,3.76052,2659.2,2659.1,0.0381733]
[1727369960119,3.76039,2659.3,2659.1,0.0381733]
[1727369960521,3.00777123,2659.4,2659.1,0.0381733]
[1727369960849,6.76802123,2659.4,2659.1,0.0381733]
[1727369961756,3.7604,2659.3,2659.1,0.0381733]
[1727369962252,3.00777123,2659.4,2659.3,0.8073]
[1727369962253,0.00777123,2659.4,2659.3,0.8073]
[1727369962664,2.0,2658.4,2657.9,1.18166689]
[1727369962864,2.0,2658.4,2656.9,3.25488745]
[1727369962865,3.7626,2657.8,2657.5,0.0381733]
[1727369963149,3.76265,2657.7,2657.5,0.0381733]
[1727369963313,3.76279,2657.6,2657.5,0.0381733]
[1727369963510,4.51533,2657.6,2657.5,0.0381733]
[1727369963749,3.76279,2657.6,2657.5,0.0381733]
[1727369965351,3.76258,2657.8,2657.5,0.0381733]
[1727369965553,7.52521,2657.8,2657.5,0.0381733]
[1727369965857,3.76266,2657.7,2657.5,0.0381733]
[1727369968022,3.76258,2657.8,2657.5,0.8454733]
[1727369968225,3.76266,2657.7,2657.5,0.8454733]
[1727369968414,3.76266,2657.7,2657.5,0.0381733]
[1727369969039,3.76279,2657.6,2657.5,0.0381733]
[1727369971831,7.96839934,2657.6,2657.5,0.0381733]
[1727369972777,10.96839934,2657.6,2657.5,0.0381733]
[1727369972949,11.51839934,2657.6,2657.5,0.0381733]
[1727369974672,11.90986635,2657.6,2657.5,0.0381733]
[1727369975173,12.66906635,2657.6,2657.5,0.0381733]
[1727369975742,7.21698434,2656.8,2656.7,0.0381733]
[1727369976055,10.31109454,2656.8,2656.7,0.0381733]
[1727369976234,10.21698434,2656.8,2656.7,0.0381733]
[1727369977181,10.76698434,2656.8,2656.7,0.0381733]
[1727369977427,10.21698434,2656.8,2656.7,0.0381733]
[1727369978331,12.16506277,2656.8,2656.7,0.0381733]
[1727369978732,12.16506277,2656.8,2655.9,0.0381733]
[1727369978733,3.7592,2656.7,2655.9,0.0381733]
[1727369978976,3.76506,2656.0,2655.9,0.0381733]
[1727369979633,4.61838818,2656.0,2655.9,0.0381733]
[1727369980020,9.35204103,2656.0,2655.9,0.0381733]
[1727369980177,9.25789725,2656.0,2655.9,0.0381733]
[1727369980742,3.76589,2655.5,2655.2,7.34]
[1727369980931,3.76589,2655.5,2655.2,0.0387526]
[1727369982277,3.76564,2655.6,2655.2,0.0387526]
[1727369982840,7.53136,2655.6,2655.2,0.0387526]
[1727369983272,3.76577,2655.5,2655.2,0.0387526]
[1727369983673,3.76564,2655.6,2655.2,0.0387526]
[1727369983912,3.76593,2655.4,2655.2,0.0387526]
[1727369984583,3.76577,2655.5,2655.2,0.0387526]
[1727369985114,3.76564,2655.6,2655.2,0.0387526]
[1727369985322,3.76555,2655.7,2655.2,0.0387526]
[1727369985612,3.76549,2655.7,2655.2,0.0387526]
[1727369986116,3.76563,2655.6,2655.2,0.0387526]
[1727369986289,3.76542,2655.8,2655.2,3.8049326]
[1727369986491,3.76542,2655.8,2655.3,0.7713]
[1727369986693,3.7652,2655.9,2655.3,4.53734]
[1727369986895,3.76499,2656.1,2655.5,3.76575]
[1727369987221,6.76474,2656.3,2655.4,0.7713]
[1727369987222,3.76474,2656.3,2655.4,0.7713]
[1727369987401,3.76379,2656.9,2655.8,3.76533]
[1727369987590,3.45306434,2657.0,2655.8,3.76533]
[1727369987591,3.76435,2656.5,2655.8,3.76533]
[1727369987798,3.76484,2656.2,2655.8,0.0387526]
[1727369988179,3.7652,2655.9,2655.8,0.0387526]
[1727369988607,6.7652,2655.9,2655.8,0.0387526]
[1727369988826,11.61659977,2655.9,2655.8,0.0387526]
[1727369988990,8.16353543,2655.9,2655.8,0.0387526]
[1727369989187,11.61659977,2655.9,2655.8,0.0387526]
[1727369989613,8.16353543,2655.9,2655.8,0.0387526]
[1727369990379,3.76506,2656.0,2655.8,0.0387526]
[1727369991283,3.7646,2656.4,2655.9,0.7713]
[1727369991524,3.7648,2656.2,2655.9,0.7713]
[1727369992020,3.7648,2656.2,2655.9,0.8100526]
[1727369992320,3.7646,2656.4,2655.9,5.03278686]
[1727369992621,7.52922,2656.4,2655.9,5.03278686]
[1727369992830,3.7646,2656.4,2655.9,5.03278686]
[1727369992997,3.76398,2656.8,2655.9,5.03278686]
[1727369993328,3.76453,2656.4,2656.0,0.0752938]
[1727369993513,3.76453,2656.4,2655.9,5.03278686]
[1727369993514,3.84399366,2656.7,2655.9,5.03278686]
[1727369993694,3.76456,2656.4,2655.9,5.03278686]
[1727369994720,3.76466,2656.3,2655.9,5.03278686]
[1727369994921,3.76466,2656.3,2655.9,1.26759686]
[1727369995337,3.76506,2656.0,2655.9,0.8100526]
[1727369996215,3.76506,2656.0,2655.9,0.0387526]
[1727370000587,3.76455,2656.4,2655.9,4.6212326]
[1727370000838,3.76411,2656.7,2656.3,0.8173]
[1727370001047,3.76358,2657.1,2656.4,0.07528066]
[1727370001327,3.76328,2657.3,2656.6,0.8173]
[1727370001626,3.76347,2657.2,2656.6,0.8173]
[1727370002014,0.7837,2657.9,2656.6,0.8173]
[1727370002015,3.76376,2657.0,2656.6,0.8173]
[1727370002217,0.376376,2656.9,2656.6,0.8173]
[1727370002388,3.76387,2656.9,2656.6,0.8173]
[1727370002586,3.76413,2656.7,2656.2,0.8173]
[1727370002790,3.76445,2656.5,2656.2,0.8173]
[1727370003014,3.76453,2656.4,2656.2,0.8173]
[1727370003187,4.140895,2656.5,2655.9,0.8560526]
[1727370003387,3.76445,2656.5,2655.9,4.6212426]